bitfinex-derivatives/quotes_SOLF0:USTF0_20230102
["timestamp","ask_amount","ask_price","bid_price","bid_amount"]
[1672630941409,5.01,9.934,9.9282,4.97]
[1672630946979,5.01,9.9327,9.9269,5.01]
[1672630948337,4.97,9.9313,9.9257,4.99]
[1672630950238,4.0,9.9385,9.9223,4.0]
[1672630950239,4.99,9.93,9.9243,5.01]
[1672630950550,4.99,9.93,9.9223,4.0]
[1672630950551,4.97,9.9286,9.9229,5.01]
[1672630951285,5.02,9.9277,9.9238,5.01]
[1672630956015,5.02,9.9257,9.9216,5.02]
[1672630959590,5.02,9.9244,9.9205,5.02]
[1672630959900,5.02,9.923,9.9191,5.01]
[1672630964945,5.02,9.9216,9.9175,5.01]
[1672630965149,4.0,9.9215,9.9175,5.01]
[1672630966729,5.02,9.9216,9.9175,5.01]
[1672630976501,5.02,9.9225,9.9166,4.99]
[1672630978918,5.0,9.9269,9.9212,5.02]
[1672630979128,4.0,9.9268,9.9212,5.02]
[1672630982494,5.0,9.9269,9.9212,5.02]
[1672631011294,5.01,9.9278,9.922,5.0]
[1672631021176,5.01,9.9269,9.923,5.02]
[1672631031263,5.02,9.9278,9.9239,5.02]
[1672631051327,56.6847,9.9298,9.9181,4.0]
[1672631051328,5.01,9.9274,9.9234,5.02]
[1672631062897,5.02,9.927,9.9234,5.02]
[1672631081290,5.02,9.927,9.923,5.02]
[1672631127423,5.02,9.927,9.9181,4.0]
[1672631127640,5.0,9.923,9.919,5.0]
[1672631127954,5.01,9.9218,9.9177,5.02]
[1672631128482,5.01,9.9229,9.9189,4.97]
[1672631149340,5.0,9.9209,9.9169,4.97]
[1672631161306,5.0,9.9213,9.9176,5.0]
[1672631171294,5.0,9.9218,9.9181,4.99]
[1672631181239,5.01,9.9226,9.9187,5.02]
[1672631201213,59.2899,9.9269,9.9201,4.99]
[1672631201424,5.02,9.9238,9.9201,4.99]
[1672631203422,5.02,9.9316,9.9234,4.99]
[1672631203633,58.5857,9.9317,9.9288,5.02]
[1672631203840,4.0,9.9316,9.9288,5.02]
[1672631204266,5.02,9.9328,9.9288,5.02]
[1672631206472,5.0,9.9354,9.9315,5.02]
[1672631206677,5.01,9.9366,9.9326,5.02]
[1672631209411,5.01,9.934,9.93,4.99]
[1672631211302,4.97,9.9349,9.9291,5.01]
[1672631213088,5.01,9.9366,9.9309,5.01]
[1672631213302,0.98443769,9.9366,9.9309,5.01]
[1672631219607,4.0,9.9417,9.9268,4.0]
[1672631219608,5.01,9.9381,9.9324,5.01]
[1672631224329,5.01,9.9381,9.9268,4.0]
[1672631224545,5.0,9.9396,9.934,4.97]
[1672631225595,5.01,9.941,9.9356,4.96]
[1672631227801,5.01,9.9386,9.933,4.97]
[1672631236732,5.01,9.9365,9.9308,4.96]
[1672631236942,4.97,9.935,9.9304,0.11894833]
[1672631240934,5.0,9.9363,9.9306,4.97]
[1672631249342,5.01,9.9386,9.9329,4.96]
[1672631251234,5.01,9.9399,9.9342,4.96]
[1672631260793,5.01,9.9399,9.9304,0.11936899]
[1672631260794,4.97,9.9443,9.9399,0.21663929]
[1672631261001,464.50135722,9.9419,9.9399,0.21663929]
[1672631262259,277.59027922,9.9419,9.9418,5.01]
[1672631262470,249.41843095,9.9419,9.9418,5.01]
[1672631263417,4.97,9.9504,9.9419,4.0]
[1672631263626,4.97,9.9504,9.9448,5.01]
[1672631264359,5.0,9.9521,9.9463,5.01]
[1672631265934,5.01,9.9468,9.9409,4.97]
[1672631266145,4.0,9.9455,9.9399,0.21663929]
[1672631269395,4.99,9.9456,9.9399,0.21663929]
[1672631269613,55.4161,9.9467,9.9423,5.01]
[1672631270873,55.4161,9.9467,9.9437,4.96]
[1672631271074,4.99,9.9506,9.945,5.01]
[1672631272343,57.444,9.9519,9.9479,4.96]
[1672631272866,57.444,9.9519,9.9466,4.96]
[1672631275281,4.97,9.951,9.9453,5.01]
[1672631275601,4.0,9.9509,9.9453,5.01]
[1672631276337,4.0,9.9509,9.9446,10.04]
[1672631277810,10.1,9.9517,9.9446,10.04]
[1672631278123,10.1,9.9517,9.9399,0.21663929]
[1672631278124,57.444,9.9519,9.9458,10.08]
[1672631278334,57.444,9.9519,9.9399,0.21663929]
[1672631278335,10.1,9.9516,9.9447,10.04]
[1672631278542,4.0,9.9515,9.9447,10.04]
[1672631279799,10.04,9.9504,9.9433,10.1]
[1672631280014,4.0,9.9503,9.9433,10.1]
[1672631281800,4.0,9.9503,9.9433,9.91091732]
[1672631286528,57.444,9.9519,9.9451,10.1]
[1672631286841,57.444,9.9519,9.9399,0.21663929]
[1672631286842,57.444,9.9519,9.9464,10.04]
[1672631289361,10.1,9.9534,9.9359,0.11954257]
[1672631289573,308.99925793,9.97,9.9359,0.11954257]
[1672631289574,10.1,9.9575,9.9505,10.08]
[1672631289783,10.1,9.9575,9.9506,4.0]
[1672631291783,10.1,9.9563,9.9491,10.03]
[1672631291994,59.3659,9.9562,9.9491,10.03]
[1672631292202,4.0,9.9561,9.9491,10.03]
[1672631293463,4.0,9.9561,9.9441,4.0]
[1672631293464,10.1,9.9656,9.956,10.04]
[1672631293669,10.1,9.9657,9.9583,10.03]
[1672631293883,49.91978776,9.964,9.9492,4.0]
[1672631294191,57.3919,9.9639,9.953,50.0]
[1672631294514,57.3919,9.9639,9.9531,4.0]
[1672631294930,10.1,9.9573,9.9501,10.04]
[1672631295248,4.0,9.9572,9.9513,10.04]
[1672631295459,10.09,9.9586,9.9513,10.04]
[1672631295662,4.0,9.9584,9.9513,10.04]
[1672631297351,4.0,9.9572,9.9501,10.04]
[1672631298297,10.07,9.9573,9.9501,10.04]
[1672631299242,10.1,9.9583,9.9513,10.03]
[1672631299454,4.0,9.9582,9.9513,10.03]
[1672631300186,10.1,9.9583,9.9513,10.03]
[1672631303864,57.3919,9.9585,9.9533,10.03]
[1672631307327,10.09,9.9606,9.9533,10.03]
[1672631307537,10.07,9.9631,9.9558,10.03]
[1672631307748,4.0,9.963,9.9558,10.1]
[1672631308276,10.1,9.9618,9.9545,10.04]
[1672631308486,4.0,9.9617,9.9545,10.04]
[1672631309109,10.1,9.9618,9.9546,4.0]
[1672631309319,49.91978776,9.974,9.9616,10.1]
[1672631309320,10.1,9.9688,9.9616,10.1]
[1672631309537,10.1,9.9701,9.963,10.1]
[1672631309740,10.07,9.9713,9.9642,10.03]
[1672631310167,4.0,9.9712,9.9642,10.03]
[1672631310588,4.0,9.9712,9.9655,10.1]
[1672631310796,10.1,9.9727,9.9655,10.1]
[1672631313106,4.0,9.9726,9.9655,10.1]
[1672631313314,10.1,9.9705,9.9633,10.1]
[1672631313526,10.07,9.9679,9.9605,10.1]
[1672631313735,4.0,9.9677,9.9605,10.1]
[1672631315209,4.0,9.9677,9.962,10.04]
[1672631315419,57.5042,9.9678,9.962,10.04]
[1672631315729,4.0,9.9677,9.962,10.04]
[1672631315944,10.1,9.9662,9.9589,10.04]
[1672631316147,4.0,9.9661,9.9589,10.04]
[1672631320882,10.04,9.9648,9.9577,10.03]
[1672631321091,4.0,9.9647,9.9577,10.03]
[1672631322146,3.77817713,9.9647,9.9577,10.03]
[1672631324137,14.09,9.9661,9.9589,10.1]
[1672631326351,0.21935443,9.9589,9.9537,10.1]
[1672631326976,0.21935443,9.9589,9.9551,10.1]
[1672631327187,0.21935443,9.9589,9.9563,10.1]
[1672631327608,0.21935443,9.9589,9.9442,4.0]
[1672631327819,0.21935443,9.9589,9.9563,10.1]
[1672631328341,0.21935443,9.9589,9.9567,2.00585488]
[1672631328557,0.21935443,9.9589,9.9554,10.04]
[1672631328769,4.0,9.9588,9.9492,3.98614961]
[1672631328980,4.0,9.9588,9.9529,10.08]
[1672631330339,4.0,9.9586,9.9529,10.08]
[1672631333913,56.5572,9.9587,9.9529,10.08]
[1672631337278,0.21935443,9.9589,9.955,10.08]
[1672631341589,0.11239102,9.9589,9.955,10.08]
[1672631342533,0.11239102,9.9589,9.9533,10.03]
[1672631343691,0.11239102,9.9589,9.9521,10.1]
[1672631352619,10.09,9.9579,9.9507,10.08]
[1672631352829,10.07,9.9565,9.9494,10.1]
[1672631353034,4.0,9.9564,9.9494,10.1]
[1672631353664,10.1,9.9551,9.9482,10.1]
[1672631353880,4.0,9.9564,9.9445,4.0]
[1672631353881,10.1,9.9516,9.9445,14.04]
[1672631354196,10.07,9.9503,9.943,10.1]
[1672631354400,54.4663,9.9502,9.943,10.1]
[1672631354615,58.4663,9.9502,9.943,10.1]
[1672631354932,4.0,9.9501,9.943,10.1]
[1672631356922,4.0,9.9501,9.9443,10.1]
[1672631357139,58.4663,9.9502,9.9443,10.1]
[1672631357140,54.4663,9.9502,9.9443,10.1]
[1672631357454,10.09,9.9526,9.9456,10.04]
[1672631357664,4.0,9.9524,9.9456,10.04]
[1672631361135,10.07,9.9514,9.9443,10.1]
[1672631361346,4.0,9.9513,9.9443,10.1]
[1672631370798,3.90241081,9.9513,9.9443,10.1]
[1672631371217,10.1,9.9505,9.9433,10.1]
[1672631371427,4.0,9.9504,9.9433,10.1]
[1672631374264,10.1,9.9505,9.9433,10.1]
[1672631376050,3.90241081,9.9513,9.9354,4.11928114]
[1672631376051,3.90241081,9.9513,9.9455,10.1]
[1672631376262,4.0,9.9524,9.9455,10.1]
[1672631386462,5.05,9.9518,9.9462,5.05]
[1672631386774,4.0,9.9517,9.9462,5.05]
[1672631391610,5.05,9.9518,9.9462,5.05]
[1672631404013,56.5927,9.9525,9.9518,0.13931004]
[1672631404438,5.05,9.9554,9.9518,0.13931004]
[1672631404851,5.05,9.958,9.9525,5.05]
[1672631405067,4.0,9.9579,9.9525,5.05]
[1672631405696,5.05,9.958,9.9525,5.05]
[1672631409062,4.91742293,9.958,9.9525,5.05]
[1672631414002,58.6377,9.9587,9.9546,5.05]
[1672631421779,58.50087428,9.9587,9.9546,5.05]
[1672631423463,5.05,9.9571,9.9518,0.13931004]
[1672631423771,5.05,9.9556,9.9518,0.13931004]
[1672631423985,4.0,9.9555,9.9518,0.13931004]
[1672631431749,4.0,9.9555,9.9499,5.05]
[1672631431965,5.05,9.9531,9.9473,5.01]
[1672631432171,5.05,9.9517,9.9459,5.0]
[1672631442478,5.05,9.9503,9.9446,5.05]
[1672631442686,4.0,9.9502,9.9446,5.05]
[1672631442896,4.0,9.9502,9.9355,4.0]
[1672631442897,5.01,9.9492,9.9434,5.0]
[1672631443316,4.0,9.9491,9.9434,5.0]
[1672631447099,5.05,9.9478,9.9421,5.05]
[1672631447306,4.0,9.9477,9.9421,5.05]
[1672631449724,5.05,9.9422,9.9313,5.05]
[1672631449932,5.01,9.9374,9.9313,5.05]
[1672631450357,5.01,9.9385,9.9327,5.05]
[1672631450768,5.05,9.9398,9.9354,5.0]
[1672631450985,5.05,9.9438,9.9379,5.05]
[1672631451194,9.05,9.9449,9.9392,5.05]
[1672631451617,5.05,9.9449,9.9392,5.05]
[1672631452878,5.05,9.9464,9.9407,5.05]
[1672631453618,5.05,9.9476,9.942,5.05]
[1672631456349,10.07,9.9483,9.9413,10.02]
[1672631456560,4.0,9.9482,9.9413,10.02]
[1672631462963,0.11977604,9.947,9.9413,10.02]
[1672631464540,0.11977604,9.947,9.94,10.1]
[1672631464756,10.02,9.9472,9.947,0.06794791]
[1672631465809,4.0,9.9471,9.94,10.1]
[1672631466018,10.1,9.9459,9.9387,10.11]
[1672631466332,4.0,9.9458,9.9387,10.11]
[1672631467491,10.02,9.9446,9.9374,10.02]
[1672631467697,4.0,9.9445,9.9374,10.02]
[1672631471799,56.0459,9.9444,9.9374,10.02]
[1672631472004,4.0,9.9443,9.9374,10.02]
[1672631474630,4.0,9.9443,9.934,4.0]
[1672631474631,4.0,9.9427,9.9358,10.02]
[1672631476424,4.0,9.9427,9.937,10.11]
[1672631476629,10.07,9.9442,9.937,10.11]
[1672631477786,10.11,9.9466,9.9395,10.11]
[1672631480202,9.92393803,9.9466,9.9395,10.11]
[1672631481359,9.92393803,9.9466,9.9402,4.96]
[1672631481573,4.97,9.9459,9.9402,4.96]
[1672631481885,4.0,9.9458,9.9402,4.96]
[1672631493977,5.0,9.9452,9.9394,5.0]
[1672631498598,4.81690727,9.9452,9.9394,5.0]
[1672631500281,5.0,9.9474,9.9417,4.99]
[1672631501333,5.0,9.9474,9.9417,4.76436213]
[1672631501854,4.0,9.9498,9.946,4.97]
[1672631502066,4.99,9.9588,9.9488,4.96]
[1672631502383,4.96,9.9573,9.9519,4.99]
[1672631504799,5.0,9.956,9.9502,4.98]
[1672631508163,4.99,9.9573,9.9516,4.97]
[1672631509109,4.0,9.9595,9.9539,4.99]
[1672631509323,4.96,9.9583,9.9526,4.96]
[1672631513731,4.81406794,9.9583,9.9526,4.96]
[1672631517203,5.0,9.9562,9.9503,5.0]
[1672631537474,4.97,9.9575,9.9517,5.0]
[1672631538108,4.96,9.9599,9.9557,4.98]
[1672631538322,4.0,9.9611,9.9557,4.98]
[1672631539164,4.97,9.9615,9.9557,4.98]
[1672631539374,4.96,9.9628,9.9571,4.98]
[1672631539687,4.0,9.9627,9.9571,4.98]
[1672631543994,4.97,9.9616,9.9558,5.0]
[1672631545783,4.0,9.9627,9.9573,5.0]
[1672631547146,4.0,9.9627,9.9529,4.0]
[1672631547147,4.0,9.9627,9.9588,5.0]
[1672631547357,5.0,9.9645,9.9588,5.0]
[1672631549773,4.0,9.9644,9.9588,5.0]
[1672631549984,4.96,9.9606,9.9548,4.97]
[1672631550835,4.99,9.9618,9.9561,4.98]
[1672631552826,57.953,9.9649,9.9594,4.97]
[1672631553037,57.953,9.9649,9.9609,4.99]
[1672631553666,57.953,9.9649,9.9596,4.97]
[1672631557450,75.19,9.9749,9.9531,4.0]
[1672631557451,4.99,9.9668,9.961,4.96]
[1672631557869,4.0,9.9667,9.961,4.96]
[1672631559967,4.99,9.9668,9.961,4.96]
[1672631562805,4.99,9.9668,9.961,4.80672616]
[1672631563331,4.0,9.9679,9.9626,5.0]
[1672631563543,4.99,9.9683,9.9626,5.0]
[1672631568889,56.309,9.9699,9.9643,4.99]
[1672631570364,5.0,9.9727,9.967,4.96]
[1672631572470,4.99,9.974,9.9682,4.99]
[1672631572680,4.0,9.9739,9.9682,4.99]
[1672631574884,4.0,9.9739,9.9616,4.0]
[1672631574885,4.0,9.9747,9.9695,4.98]
[1672631575096,4.99,9.9779,9.9722,4.97]
[1672631575302,4.0,9.9765,9.9722,4.97]
[1672631576040,4.86743054,9.9752,9.9694,4.96]
[1672631576250,4.0,9.9751,9.9694,4.96]
[1672631580038,4.99,9.9739,9.9681,4.96]
[1672631580245,4.0,9.9738,9.9681,4.96]
[1672631580667,4.99,9.9701,9.9642,4.98]
[1672631581192,5.0,9.9725,9.9668,4.97]
[1672631581403,4.0,9.9724,9.9668,4.97]
[1672631585077,5.0,9.9725,9.9668,4.97]
[1672631585290,54.3601,9.9737,9.9683,4.98]
[1672631586134,54.3601,9.9737,9.9697,4.97]
[1672631586346,54.3601,9.9737,9.969,10.05]
[1672631586661,4.0,9.9736,9.9677,10.05]
[1672631586975,14.05,9.9736,9.9664,10.05]
[1672631589182,10.05,9.9736,9.9664,10.05]
[1672631589388,54.3601,9.9737,9.9689,10.05]
[1672631593595,9.98,9.9762,9.9689,10.05]
[1672631593805,54.2625,9.9761,9.9689,10.05]
[1672631594434,54.2625,9.9761,9.9715,10.03]
[1672631597793,54.2625,9.9761,9.969,10.05]
[1672631598218,10.05,9.9749,9.9677,10.05]
[1672631598639,4.0,9.9748,9.9677,10.05]
[1672631602949,10.05,9.9749,9.9677,10.05]
[1672631605680,54.2625,9.9761,9.9701,10.05]
[1672631610093,54.2625,9.9761,9.9726,10.05]
[1672631610402,4.0,9.9846,9.9631,4.0]
[1672631610403,4.0,9.9846,9.9761,0.14872112]
[1672631610617,57.5226,9.9845,9.9798,10.03]
[1672631610828,49.91978776,9.995,9.9813,10.05]
[1672631611142,10.05,9.9889,9.9813,10.05]
[1672631611357,56.641,9.9888,9.9828,10.05]
[1672631611564,56.641,9.9888,9.9855,10.05]
[1672631612295,56.641,9.9888,9.9866,10.05]
[1672631612716,49.91978776,9.995,9.9866,10.05]
[1672631612924,10.05,9.9942,9.9866,10.05]
[1672631613135,10.05,9.9927,9.9855,10.05]
[1672631613662,10.05,9.9915,9.9829,10.03]
[1672631613876,9.98,9.9901,9.9829,10.03]
[1672631614086,56.641,9.99,9.9829,10.03]
[1672631614400,10.01,9.9888,9.9817,10.05]
[1672631614606,10.05,9.9879,9.9817,10.05]
[1672631615025,4.0,9.9878,9.9817,10.05]
[1672631615237,10.01,9.9866,9.9794,10.05]
[1672631615449,9.77144141,9.9841,9.9769,10.05]
[1672631615658,10.01,9.9841,9.9769,10.05]
[1672631615973,4.0,9.9865,9.9796,10.03]
[1672631616186,10.05,9.9855,9.9783,10.05]
[1672631616609,4.0,9.9854,9.9783,10.05]
[1672631618388,10.05,9.9855,9.9783,10.05]
[1672631618595,4.0,9.9865,9.9809,10.05]
[1672631618814,4.0,9.9876,9.9809,10.05]
[1672631619231,56.8846,9.9877,9.9809,10.05]
[1672631619653,4.0,9.9876,9.9809,10.05]
[1672631620915,56.8846,9.9877,9.9809,10.05]
[1672631621860,4.0,9.9876,9.9809,10.05]
[1672631622284,49.91978776,9.995,9.9761,0.14872112]
[1672631622490,57.2458,9.9913,9.9792,40.2]
[1672631622808,57.2458,9.9913,9.9854,10.05]
[1672631623226,57.2458,9.9913,9.9882,10.05]
[1672631623429,10.05,9.9968,9.9895,10.03]
[1672631623645,59.1139,9.9948,9.9895,10.03]
[1672631623856,4.0,9.9947,9.9895,10.03]
[1672631624277,59.1139,9.9948,9.9909,10.05]
[1672631624500,59.1139,9.9948,9.9922,10.05]
[1672631625012,10.05,10.001,9.9935,10.05]
[1672631625222,10.05,10.001,9.988,40.2]
[1672631625223,59.1139,9.9994,9.9958,10.05]
[1672631625428,74.9,10.014,9.9985,10.05]
[1672631625645,74.9,10.014,9.9923,4.0]
[1672631625646,74.9,10.014,10.0,10.05]
[1672631625856,4.0,10.013,10.001,4.0]
[1672631626059,10.05,10.01,10.002,10.05]
[1672631626599,10.01,10.009,10.0,10.05]
[1672631626795,4.0,10.008,10.0,10.05]
[1672631627010,59.92978776,10.005,9.9967,10.03]
[1672631627216,9.98,10.003,9.9957,10.05]
[1672631627426,10.05,10.001,9.9933,10.05]
[1672631627642,10.05,9.9993,9.992,10.05]
[1672631627960,9.98,9.9981,9.9907,10.05]
[1672631628164,4.0,9.9992,9.9933,10.05]
[1672631628482,10.05,10.006,9.9982,10.05]
[1672631628695,90.03978776,10.015,9.9991,10.05]
[1672631629008,4.0,10.005,9.9991,9.91941611]
[1672631629325,4.0,10.005,9.998,10.05]
[1672631629636,10.05,10.002,9.9941,10.05]
[1672631629847,10.05,9.9991,9.9917,10.03]
[1672631630476,14.05,10.001,9.9929,10.05]
[1672631630791,10.01,10.002,9.9943,10.05]
[1672631631106,10.01,10.004,9.9956,10.05]
[1672631631317,4.0,10.005,9.9991,10.05]
[1672631631528,10.05,10.007,9.9991,10.05]
[1672631631841,14.05,10.008,10.0,10.05]
[1672631632051,10.05,10.008,10.0,10.05]
[1672631632677,10.01,10.01,10.002,4.0]
[1672631633415,4.0,10.014,10.002,10.05]
[1672631633838,10.05,10.009,10.001,10.05]
[1672631634044,10.05,10.006,9.9983,10.05]
[1672631634777,9.98,10.008,9.9998,10.05]
[1672631634992,10.05,10.009,10.0,10.05]
[1672631635407,9.98,10.01,10.002,10.05]
[1672631635621,4.0,10.009,10.002,10.05]
[1672631635832,9.98,10.008,9.9997,10.05]
[1672631636249,9.98,10.005,9.9969,10.05]
[1672631636779,4.0,10.004,9.9969,10.05]
[1672631637303,9.98,10.005,9.9969,10.05]
[1672631637509,10.01,9.9999,9.9926,10.05]
[1672631638143,4.0,9.9998,9.9926,10.05]
[1672631638768,4.0,9.9998,9.9831,9.8042]
[1672631638980,9.98,9.9975,9.9901,10.03]
[1672631639191,10.05,9.9949,9.9875,10.05]
[1672631639405,9.98,9.9935,9.9862,10.05]
[1672631639616,10.01,9.9909,9.9835,10.05]
[1672631639933,49.91978776,9.996,9.9731,75.2]
[1672631639934,9.98,9.9896,9.9823,10.05]
[1672631640143,10.05,9.9908,9.9833,10.05]
[1672631640560,4.0,9.9934,9.983,50.0]
[1672631640770,4.0,9.9934,9.9904,10.05]
[1672631641088,4.0,9.9934,9.989,10.05]
[1672631641929,4.0,9.9934,9.9834,4.0]
[1672631641930,10.05,9.9986,9.9912,10.05]
[1672631642140,10.05,10.002,9.9937,10.05]
[1672631642665,10.05,10.003,9.995,10.05]
[1672631643079,4.0,10.004,9.9937,10.05]
[1672631643080,10.01,10.002,9.9937,10.05]
[1672631643306,10.01,9.9986,9.9912,10.03]
[1672631643606,4.0,9.9943,9.9868,10.05]
[1672631644343,10.05,9.9918,9.9843,10.05]
[1672631644557,4.0,9.9917,9.9843,10.05]
[1672631644764,10.05,9.9906,9.9831,10.03]
[1672631644979,10.05,9.9881,9.9731,4.0]
[1672631645292,10.05,9.9893,9.9731,4.0]
[1672631645498,4.0,9.9917,9.9845,10.03]
[1672631645709,4.0,9.9905,9.9858,10.05]
[1672631646024,4.0,9.9917,9.9846,10.05]
[1672631646230,10.05,9.992,9.9846,10.05]
[1672631646443,10.05,9.9971,9.9898,10.05]
[1672631646760,78.97,10.004,9.9929,10.03]
[1672631646761,14.05,10.001,9.9929,10.03]
[1672631648025,10.01,9.9974,9.99,10.05]
[1672631648233,10.01,9.9974,9.983,50.0]
[1672631648234,10.01,9.995,9.9876,10.05]
[1672631648753,10.05,9.9908,9.9834,10.03]
[1672631648968,10.05,9.9893,9.9818,10.05]
[1672631649177,4.0,9.9892,9.9818,10.05]
[1672631649598,10.05,9.9879,9.9807,10.05]
[1672631650019,9.98,9.9892,9.9819,10.05]
[1672631650333,9.98,9.9892,9.9731,4.0]
[1672631650334,10.05,9.9919,9.9845,10.03]
[1672631650646,14.05,10.001,9.9913,10.05]
[1672631650855,14.05,10.001,9.9927,10.05]
[1672631651278,10.05,10.001,9.9927,10.05]
[1672631651913,10.05,9.9979,9.9903,10.05]
[1672631652331,10.05,9.9992,9.9916,10.05]
[1672631652645,4.0,9.9991,9.9929,10.05]
[1672631652857,10.05,9.999,9.9916,10.05]
[1672631653171,10.01,9.9977,9.9903,10.05]
[1672631653593,4.0,9.9989,9.9917,10.03]
[1672631653914,4.0,9.9991,9.9931,10.05]
[1672631654118,10.05,9.9974,9.9901,10.05]
[1672631654328,4.0,9.9973,9.9901,10.05]
[1672631654541,4.0,9.9973,9.9914,10.05]
[1672631654747,4.0,9.9973,9.9927,10.05]
[1672631654959,4.0,9.9991,9.9927,10.05]
[1672631655907,10.01,9.9987,9.9914,10.05]
[1672631656849,4.0,9.9986,9.9914,10.05]
[1672631658323,4.0,9.9989,9.9928,10.05]
[1672631658528,58.4053,9.999,9.9928,10.05]
[1672631658744,40.12,10.006,9.988,40.2]
[1672631658745,9.98,10.006,9.9984,10.03]
[1672631659055,58.5429,10.005,9.9984,10.03]
[1672631659685,4.0,10.004,9.9984,10.03]
[1672631659890,4.0,10.004,9.9971,10.05]
[1672631660423,58.5429,10.005,10.004,0.1797085]
[1672631660636,10.05,10.009,10.004,0.1797085]
[1672631661683,9.98,10.007,10.004,0.1797085]
[1672631661890,4.0,10.008,10.004,0.1797085]
[1672631663888,4.0,10.009,10.004,0.1797085]
[1672631664206,4.0,10.013,10.004,0.1797085]
[1672631665467,3.91880802,10.013,10.004,0.1797085]
[1672631666096,19.06,10.015,10.004,0.1797085]
[1672631666415,4.0,10.02,10.004,15.1097085]
[1672631666832,14.88,10.018,10.004,0.1797085]
[1672631667037,4.0,10.02,10.004,0.1797085]
[1672631667038,49.91978776,10.016,10.004,0.1797085]
[1672631667462,4.0,10.015,10.004,0.1797085]
[1672631667674,37.34261411,10.015,10.004,0.1797085]
[1672631668097,18.99,10.015,10.004,0.1797085]
[1672631669349,4.0,10.015,10.004,0.1797085]
[1672631670716,4.0,10.018,10.004,0.1797085]
[1672631671242,4.0,10.018,10.004,15.1697085]
[1672631671669,49.91978776,10.016,10.004,0.1797085]
[1672631672397,4.0,10.015,10.004,0.1797085]
[1672631673239,18.99,10.015,10.004,0.1797085]
[1672631674924,14.99,10.015,10.004,0.1797085]
[1672631675135,53.91978776,10.016,10.004,0.1797085]
[1672631675556,53.91978776,10.016,10.0,14.99]
[1672631675767,4.0,10.015,10.0,14.99]
[1672631681019,14.99,10.013,9.998,14.99]
[1672631681233,14.99,10.013,9.9951,14.99]
[1672631681651,4.0,10.012,9.9952,4.0]
[1672631683955,4.0,10.012,9.9951,14.99]
[1672631684172,14.99,10.01,9.9951,14.99]
[1672631684382,4.0,10.009,9.9951,14.99]
[1672631690157,4.0,10.009,9.993,636.0]
[1672631690372,74.2754,10.008,9.993,636.0]
[1672631690582,4.0,10.007,9.993,636.0]
[1672631691844,4.0,10.007,9.9931,4.0]
[1672631692057,4.0,10.007,9.995,14.99]
[1672631692264,59.2854,10.008,9.995,14.99]
[1672631692580,59.2854,10.008,9.9951,4.0]
[1672631692889,4.0,10.007,9.9951,4.0]
[1672631694257,4.0,10.007,9.995,14.99]
[1672631697095,4.0,10.007,9.992,14.99]
[1672631697303,4.0,10.007,9.993,50.0]
[1672631698988,4.0,10.007,9.9931,4.0]
[1672631702136,74.2754,10.008,9.9931,4.0]
[1672631702975,59.2854,10.008,9.9953,14.99]
[1672631703402,4.0,10.007,9.9954,4.0]
[1672631704345,4.0,10.007,9.9953,14.99]
[1672631705082,4.0,10.007,9.9927,14.99]
[1672631705291,4.0,10.007,9.993,50.0]
[1672631705504,4.0,10.007,9.9931,4.0]
[1672631706660,4.0,10.007,9.9955,14.93]
[1672631706872,4.0,10.007,9.9956,4.0]
[1672631707289,4.0,10.007,9.9955,14.93]
[1672631709496,4.0,10.007,9.9931,4.0]
[1672631710336,4.0,10.007,9.9954,14.93]